Cogmind - Beta 15 @@@ ROGUE MODE // 2025.07.29 @ 20:10:13 Player: ilja Result: Destroyed by G-34 Mercenary with Small Laser Performance ------------- Evolutions (1) 500 Regions Visited (2) 400 Robots Destroyed (26) 130 Value Destroyed (601) 601 Prototype IDs (0) 0 Alien Tech Used (0) 0 Bonus (0) 0 TOTAL SCORE: 1631 Bonus ------- None Cogmind --------- Core Integrity 0/400 Matter 91/300 Energy 250/250 System Corruption 4% Temperature Cool (6) Movement Core (750) Ox14 Location -9/Materials Parts ------- > --- POWER (1) -------- (None) > --- PROPULSION (2) --- (None) > --- UTILITY (4) ------ High-capacity Storage Unit Medium Battery > --- WEAPON (2) ------- Light Assault Rifle > --- INVENTORY (20) --- Light Treads Light Treads Light Treads Wheel Terrain Scanner Peak State ------------ > --- POWER ------------ (None) > --- PROPULSION ------- Compact Wheel Compact Wheel > --- UTILITY ---------- Small Storage Unit High-capacity Storage Unit Medium Battery Hardened Light Armor Plating > --- WEAPON ----------- Improved Light Cannon Improved Light Cannon > --- INVENTORY -------- Light Treads Light Treads Wheel Terrain Scanner Light Assault Rifle Mining Laser [Rating: 11] Favorites ----------- Power Ion Engine Engine Ion Engine Propulsion Light Treads Treads Light Treads Wheel Compact Wheel Utility Small Storage Unit Device Seismic Detector Storage Small Storage Unit Protection Hardened Light Armor Plating Weapon Assault Rifle Ballistic Gun Assault Rifle Ballistic Cannon Improved Light Cannon Special Weapon Mining Laser Build | -11 -10 -9 ------- Run | Yrd Mat Mat Slots Evolved 2 | . . 2 Power . | . . . Propulsion . | . . . Utility 2 | . . 2 Weapon . | . . . Parts Attached 17 | 8 3 6 Power 1 | 1 . . Engine 1 | 1 . . Core . | . . . Reactor . | . . . Propulsion 5 | 2 3 . Treads 2 | 2 . . Leg . | . . . Wheel 3 | . 3 . Hover . | . . . Flight . | . . . Utility 5 | 2 . 3 Device 1 | 1 . . Storage 3 | 1 . 2 Processor . | . . . Hackware . | . . . Protection 1 | . . 1 Artifact . | . . . Weapon 6 | 3 . 3 Energy Gun . | . . . Energy Cannon . | . . . Ballistic Gun 3 | 3 . . Ballistic Cannon 2 | . . 2 Launcher . | . . . Special Weapon 1 | . . 1 Impact Weapon . | . . . Slashing Weapon . | . . . Piercing Weapon . | . . . Special Melee Weapon . | . . . Unidentified Prototypes . | . . . Parts Lost 8 | . 1 7 Power 1 | . 1 . Propulsion 2 | . . 2 Utility 2 | . . 2 Weapon 3 | . . 3 Highest Loss Streak 4 | . 1 4 To Critical Strikes . | . . . Average Backups 6 | 5 7 6 Power . | . . . Propulsion 3 | 3 3 3 Utility . | . 1 1 Weapon 1 | 2 2 1 Tool/Special . | . . . Unused Backups 3 | . . 3 Power . | . . . Propulsion 2 | . . 2 Utility 1 | . . 1 Weapon . | . . . Tool/Special . | . . . Average Slot Usage (%) 86 | . 95 72 Engine 6 | . 10 . Treads 9 | . 16 . Wheel 12 | . 12 14 Device 9 | . 14 1 Storage 20 | . 14 30 Protection 2 | . . 7 Ballistic Gun 18 | . 28 2 Ballistic Cannon 6 | . . 17 Peak Build Rating 11 | 7 7 11 Average Rating 6 | 5 6 8 On Entrance 4 | . 7 6 Naked Turns . | . . . Heaviest Build 60 | 15 15 60 Greatest Support 40 | 40 40 32 Greatest Overweight (x) 19 | . . 19 Average Overweight (x) . | . . 1 Largest Inventory Capacity 20 | 8 8 20 Average Capacity 10 | 7 8 18 Most Carried 8 | 7 8 7 Average Carried 6 | 5 7 6 Final Capacity 20 | 8 8 20 Final Carried 7 | 6 7 5 Class Distribution -------------------- 100% | Mutant Dominant Class ---------------- Mutant | -10/Materials Mutant | -9/Materials Resources | -11 -10 -9 ----------- Run | Yrd Mat Mat Matter Collected 560 | 301 168 91 Remotely . | . . . Salvage Created 680 | 136 334 210 Parts 53 | 11 27 15 Haulers Intercepted . | . . . Recyclers Shooed 2 | . 1 1 Parts Field Recycled . | . . . Retrieved Matter . | . . . Parts Self-Destructed . | . . . Prevented . | . . . Kills | -11 -10 -9 ------- Run | Yrd Mat Mat Combat Hostiles Destroyed 21 | . 11 10 Guns 10 | . 10 . Cannons 10 | . . 10 AOE 1 | . 1 . Classes Destroyed 7 | 3 3 1 Worker 1 | 1 . . Tunneler 2 | 2 . . Recycler 1 | 1 . . Watcher 1 | . 1 . Swarmer 10 | . 5 5 Grunt 7 | . 6 1 Sentry 4 | . . 4 Best Kill Streak 4 | 1 3 4 Combat Bots Only 4 | . 3 4 Max Kills in Single Turn 1 | 1 1 1 Gunslinging . | . . . Exploded 1 | . 1 . Melee . | . . . Uniques/NPCs Destroyed . | . . . Combat | -11 -10 -9 -------- Run | Yrd Mat Mat Hostile Shots Fired 231 | . 85 146 Missed 60 | . 30 30 Hits 171 | . 55 116 Projectile 171 | . 55 116 Critical Strikes 1 | . . 1 Damage Taken 1872 | . 641 1231 Core 617 | . 207 410 Absorbed by Shields . | . . . Core Remaining (%) 58 | 100 17 . Volleys Fired 84 | 21 36 27 Largest 2 | 1 2 2 Hottest 120 | 20 40 120 Shots Fired 146 | 21 72 53 Gun 95 | 21 72 2 Cannon 49 | . . 49 Launcher . | . . . Special 2 | . . 2 Kinetic 144 | 21 72 51 Thermal 2 | . . 2 Explosive . | . . . Electromagnetic . | . . . Robot Hit Streak 5 | 4 5 5 Robot Miss Streak 5 | 2 5 3 Penetration Max . | . . . Secondary Targets . | . . . Shots Hit Robots 81 | 14 41 26 Core Hits 38 | 8 19 11 Critical Kills . | . . . Critical Parts Destroyed . | . . . Critical Strikes 1 | . . 1 Blast 1 | . . 1 Melee Attacks . | . . . Impact . | . . . Slashing . | . . . Piercing . | . . . Sneak Attacks . | . . . Combat Hostiles . | . . . Follow-up Attacks . | . . . Damage Inflicted 1332 | 108 610 614 Guns 609 | 108 501 . Cannons 569 | . . 569 Explosions 107 | . 107 . Melee . | . . . Ramming 23 | . 2 21 Kinetic 1178 | 108 501 569 Thermal 131 | . 107 24 Explosive . | . . . Electromagnetic . | . . . Impact . | . . . Slashing . | . . . Piercing . | . . . Highest Corruption 4 | . . 4 Average Corruption 4 | . . 4 Corruption Purged . | . . . Corruption Blocked . | . . . Effects 1 | . . 1 Message Errors 1 | . . 1 Overload Shots . | . . . Overflow Damage 20 | . . 20 Projectiles 20 | . . 20 Explosions . | . . . Melee . | . . . Knockbacks 6 | . . 6 Impact . | . . . Kinetic 6 | . . 6 Secondary . | . . . Self-Inflicted Damage 119 | . 109 10 Shots 1 | . 1 . Rammed 2 | . 1 1 Targets Rammed 2 | . 1 1 Kicked . | . . . Crushed . | . . . Highest Temperature 35 | . 8 35 Average Temperature 11 | . 4 14 Received Heat Transfer 582 | . 162 420 Siege Activations . | . . . Martial Activations . | . . . Shielding Activations . | . . . Robots Disrupted . | . . . Combat Hostiles . | . . . Robots Corrupted . | . . . Combat Hostiles . | . . . Parts Fried . | . . . Impact Corruptions . | . . . Robots Melted . | . . . Combat Hostiles . | . . . Parts Melted . | . . . Heat Transferred 100 | . 50 50 Parts Sabotaged . | . . . Parts Stolen . | . . . Parts Stripped . | . . . Power Chain Reactions . | . . . Alert | -11 -10 -9 ------- Run | Yrd Mat Mat Maximum Alert Level . | . . . Low Security (%) 100 | 100 100 100 Level 1 . | . . . Level 2 . | . . . Level 3 . | . . . Level 4 . | . . . Level 5 . | . . . High Security . | . . . Max Security . | . . . Peak Influence 157 | 5 152 157 Initial 45 | . . 45 Average 36 | . 56 61 Influence Increases 653 | 20 345 288 Destroy 0b10 Robot/C 420 | . 220 200 Destroy 0b10 Robot/NC 25 | 20 5 . Destroy Leader 112 | . 42 70 Disable Machine 30 | . 30 . Destroy Structure 36 | . 33 3 Lose Combat Pursuer 30 | . 15 15 Influence Decreases 561 | 20 237 304 Entered New Map 63 | . . 63 Time Decay 418 | 20 227 171 Lost Part 80 | . 10 70 Squads Dispatched 2 | . 2 . Investigation 1 | . 1 . Extermination . | . . . Reinforcement 1 | . 1 . Assault . | . . . Garrison . | . . . Intercept . | . . . Searches Triggered . | . . . Construction Impeded . | . . . Haulers Reinforced . | . . . Active Scanning Responses . | . . . Cargo Convoy Interrupts . | . . . Stealth | -11 -10 -9 --------- Run | Yrd Mat Mat Distress Signals 1 | . . 1 Communications Jammed . | . . . Distress Signals . | . . . Times Spotted 34 | . 16 18 Peak Tracking Total 6 | . 3 6 Tactical Retreats 2 | . 1 1 Traps | -11 -10 -9 ------- Run | Yrd Mat Mat Traps Triggered 1 | . 1 . Indirectly . | . . . Trap Hack Attempts . | . . . Triggered . | . . . Disarmed . | . . . Reprogrammed . | . . . Reused . | . . . Traps Extracted . | . . . Installed . | . . . Triggered . | . . . Machines | -11 -10 -9 ---------- Run | Yrd Mat Mat Machines Disabled 2 | . 2 . Max in Single Turn 1 | . 1 . Machines Repaired . | . . . Machines Dismantled . | . . . Machines Sabotaged . | . . . Overloaded Fab Kills . | . . . Hacking | -11 -10 -9 --------- Run | Yrd Mat Mat Machines Accessed 2 | . 1 1 Terminals 1 | . 1 . Fabricators . | . . . Repair Stations 1 | . . 1 Recycling Units . | . . . Scanalyzers . | . . . Garrison Access . | . . . Total Hacks 2 | . 1 1 Successful 1 | . 1 . Failed 1 | . . 1 Catastrophic . | . . . Database Lockouts . | . . . Manual . | . . . Terminals 1 | . 1 . Fabricators . | . . . Repair Stations 1 | . . 1 Recycling Units . | . . . Scanalyzers . | . . . Garrison Access . | . . . Terminal Hacks 1 | . 1 . Alert Level 1 | . 1 . Fabricator Hacks . | . . . Repair Station Hacks . | . . . Recycling Unit Hacks . | . . . Scanalyzer . | . . . Garrison Access Hacks . | . . . Unauthorized Hacks . | . . . Terminals . | . . . Fabricators . | . . . Repair Stations . | . . . Recycling Units . | . . . Scanalyzers . | . . . Garrison Access . | . . . Data Cores Recovered . | . . . Used . | . . . Hacking Detections 1 | . . 1 Full Trace Events . | . . . Feedback Events . | . . . Feedback Blocked . | . . . Robot Schematics Acquired . | . . . Robots Built . | . . . Authchips . | . . . Time . | . . . Total Robot Build Rating . | . . . Part Schematics Acquired . | . . . Parts Built . | . . . Authchips . | . . . Time . | . . . Total Part Build Rating . | . . . Parts Repaired . | . . . Time . | . . . Parts Recycled . | . . . Recycled Matter . | . . . Retrieved Matter . | . . . Retrieved Components . | . . . Parts Scanalyzed . | . . . Part Schematics Acquired . | . . . Parts Damaged . | . . . Bothacking | -11 -10 -9 ------------ Run | Yrd Mat Mat Used RIF Installer . | . . . Robots Hacked . | . . . Non-combat . | . . . Combat . | . . . Robot Hacks Applied . | . . . Relay Couplers Released . | . . . Fabnet Peak Effective % . | . . . Robots Rewired . | . . . Allies Hacked . | . . . Hacks Repelled . | . . . Allies | -11 -10 -9 -------- Run | Yrd Mat Mat Total Allies . | . . . Largest Group . | . . . Highest-Rated Group . | . . . Highest-Rated Ally . | . . . Total Orders . | . . . Ally Attacks . | . . . Total Damage . | . . . Kills . | . . . Allies Corrupted . | . . . Allies Melted . | . . . Intel | -11 -10 -9 ------- Run | Yrd Mat Mat Active Infowar (turns) 1013 | 404 609 . Seismic 1013 | 404 609 . Robot Analysis Total . | . . . Derelict Logs Recovered . | . . . Drone Launches . | . . . Drone Recoveries . | . . . Exploration | -11 -10 -9 ------------- Run | Yrd Mat Mat Turns Passed 1836 | 708 699 429 Spaces Moved 1083 | 414 460 209 Core 19 | 9 . 10 Treads 603 | 405 198 . Legs . | . . . Wheels 461 | . 262 199 Hover . | . . . Flight . | . . . Fastest Speed 50 | 50 100 100 Average Speed 143 | 157 125 152 Slowest Speed 1000 | 160 160 1000 Overloaded Moves . | . . . Propulsion Burnouts . | . . . Robots Hopped . | . . . Potential Cave-ins . | . . . Cave-ins Triggered . | . . . Exploration Rate (%) 27 | 20 44 17 Regions Visited 2 Branch Regions . Pre-discovered Areas . | . . . Known Exits Taken . | . . . Unknown Exits Taken 2 | 1 1 . Scrap Searched . | . . . Spaces Dug . | . . . Terrain Destroyed 34 | . 33 1 Melee . | . . . Projectile 1 | . . 1 AOE 33 | . 33 . Terrain Rammed . | . . . Walls Destroyed . | . . . Machines Disabled . | . . . Actions | -11 -10 -9 --------- Run | Yrd Mat Mat Total 1211 | 449 507 255 Wait 11 | . 5 6 Move 1081 | 413 459 209 Hop . | . . . Pick Up 11 | 7 2 2 Fast Attach 9 | 6 . 3 Attach 5 | 1 . 4 Detach . | . . . Swap 4 | 1 3 . Drop 4 | . 1 3 Fire 84 | 21 36 27 Melee . | . . . Ram 2 | . 1 1 Kick . | . . . Crush . | . . . Escape Stasis . | . . . Rewire . | . . . Trap . | . . . Miscellaneous . | . . . Route ------- -11/Scrapyard -10/Materials (discovered 2 exits: *Mat / [*Min]) -9/Materials History --------- Turn | Location | Event 44 | -11/Scrapyard | Discovered new exit (range 14) 709 | -11/Scrapyard | Entered Materials 710 | -10/Materials | Build established: Mutant 839 | -10/Materials | Discovered new exit (range 11) 942 | -10/Materials | Discovered new exit (range 12) 1233 | -10/Materials | Core integrity fell below 50% 1317 | -10/Materials | Core integrity fell below 20% 1408 | -10/Materials | Entered another Materials area 1408 | -9/Materials | Evolved 2 slots: Utility x2 1761 | -9/Materials | Core integrity fell below 50% 1800 | -9/Materials | Lost 4 parts (1n1u2w) 1807 | -9/Materials | Core integrity fell below 20% 1837 | -9/Materials | Destroyed by G-34 Mercenary with Small Laser Last Messages --------------- 01761_ R-06 Scavenger collects Imp. Ion Engine. 01762_ Imp. Light Cannon destroyed. 01763_ K-01 Serf cleans the Electrolysis Chamber. 01765_ Acquired 3 matter. 01765_ U-05 Engineer builds a Wall. 01769_ Imp. Light Cannon destroyed. 01790_ K-01 Serf collects debris. 01799_ S-10 Pest destroyed. 01801_ K-01 Serf collects debris. 01802_ S-10 Pest destroyed. 01804_ K-01 Serf collects debris. 01806_ Mining Laser destroyed. 01807_ Sml. Storage Unit destroyed. 01808_ K-01 Serf collects debris. 01816_ S-10 Pest destroyed. 01818_ K-01 Serf collects debris. 01821_ S-10 Pest destroyed. 01825_ K-01 Serf collects debris. 01828_ D9 Map ----- +----------------------------------------------------+ | ?????????????????????????????????????????????????? | | ?????????????????????????????????????????????????? | | ?????????????????????????????????????????????????? | | ?????????????????????????????????????????????????? | | ?????????????????????????????????????????????????? | | ?????????????????????????????????????????????????? | | ?????????????????????????????????????????????????? | | ?????????????????????????????????????????????????? | | ??????????????????# #??????????????????????????? | | ?????????????????# ??????????????????????????? | | ????????????????? % ??????????????????????????? | | ????????????????? ??????????????????????????? | | ?????????????????? % ??????????????????????????? | | ?????????????????? ??????????????????????????? | | ??????????????????# #??????????????????????????? | | ??????????????????# #??????????????????????????? | | ??????????????????# #??????????????????????????? | | ??????????????????# #?#+#????######????????????? | | ???????????######?# #?# #??? ?????????????? | | ???????????# ! #% #?# #?? """?????????????? | | ????????????? # ### ## ]== """?????????????? | | ???????????????? + =[**# ]== """ ????????????? | | ??????????????????# % %=u%%/ === ??????????????? | | ??????????????????#% k==#?????????????????????? | | ??????????????????## ####g##?????????????????????? | | ???????????????????# #??#@#??????????????????????? | | ?????????????????### #### #??????????????????????? | | ?????????????????# ## ??????????????????????? | | ?????????????????# ##+#########??????????????? | | ?????????????????+ + #######????????? | | ?????????????????# ## # #????????? | | ?????????????????# ## # #????????? | | ?????????????????## !### + #????????? | | ??????????????????# ### # #????????? | | ??????????????????# ! + # #????????? | | ??????????????????# ### ## #?????????? | | ??????????????????# #?# == % ## #?????????? | | ??????????????????##+##?#####+###### #?????????? | | ???????????????????" "??????# #????# #?????????? | | ???????????????????" "??????# #????# #?????????? | | ???????????????????" "??????# #????# #?????????? | | ??????????????????? ?????## ##???# #####+##### | | ??????????????????? ?????#% ##### = # | | ??????????????????? ?????#/ % ] %=% + "" | | ???????????????????! ?????#=% ##### # "Y | | ??????????????????? ?????##%##???## """ + "" | | ???????????????????##########/#?????# """"" # | | ????????????????????# ####### """"" # | | ????????????????????#"" """ # # """"" #### | | ????????????????????#"T """ # """ | +----------------------------------------------------+ Best States ------------- Heat Dissipation 28 Energy Generation 10 Energy Capacity 250 Matter Stores 300 Matter Capacity 300 Sight Range 16 Terrain Scan Density 10 Armor Coverage 150 Evasion (%) 40 Recoil Reduction 2 Item Schematics ----------------- None Robot Schematics ------------------ None Fabricated ------------ Nothing Repaired ---------- Nothing Alien Tech Used ----------------- None Achievements -------------- None Challenges ------------ None Game ------ Seed SpliceSiegeTendrils Manual? 0 Play Time 00:19:07 Cumulative 5.6 hours Start 2025.07.29 @ 19:52:10 End 2025.07.29 @ 20:10:13 Sessions 1 Manual Loads 0 Difficulty Rogue Special Mode None Game No. 14 Rogue 14 Adventurer 0 Explorer 0 Win Type - Total 0 Types 0/0/0/0/0/0/0/0/0/0 Lore% 5 Gallery% 8 Achievement% 10 Wizard Run 0 Options --------- Layout 0 ASCII 0 Keyboard 0 Movement Arrows Keybinds 0 Fullscreen 1 Font 20/SmallcapsGlow Map View 66x50 Zoom Use 0% Tactical HUD 1 Map Filters NONE Filters NONE Steam 1 RUN: da8c4945-aa06-4ceb-a1ce-fc4e8e238528